[Event "Titled Tuesday Blitz April 12 Early 2022"]
[White "Rostovtsev, Dmitry"]
[Black "Kazakouski, Valery"]
[WhiteFideId "34278320"]
[BlackFideId "13507443"]
[WhiteElo "2272"]
[BlackElo "2524"]
[Result "0-1"]
[Round "06"]
[TimeControl "180+1"]
[Date "2022.04.12"]
[WhiteClock "0:00:12"]
[BlackClock "0:00:18"]

1. e4 {[%clk 0:03:00]}  c5 {[%clk 0:02:55]} 2. Nf3 {[%clk 0:03:00]}  a6 {[%clk 0:02:55]} 3. c3 {[%clk 0:03:00]}  d5 {[%clk 0:02:56]} 4. exd5 {[%clk 0:02:51]}  Qxd5 {[%clk 0:02:57]} 5. d4 {[%clk 0:02:51]}  Bg4 {[%clk 0:02:57]} 6. Be2 {[%clk 0:02:51]}  Nf6 {[%clk 0:02:57]} 7. dxc5 {[%clk 0:02:40]}  Qxc5 {[%clk 0:02:57]} 8. Be3 {[%clk 0:02:39]}  Qc7 {[%clk 0:02:57]} 9. Na3 {[%clk 0:02:34]}  e6 {[%clk 0:02:55]} 10. Nc4 {[%clk 0:02:34]}  Nbd7 {[%clk 0:02:55]} 11. Nd4 {[%clk 0:02:21]}  Bxe2 {[%clk 0:02:50]} 12. Qxe2 {[%clk 0:02:22]}  Rc8 {[%clk 0:02:49]} 13. Nd2 {[%clk 0:02:17]}  Bd6 {[%clk 0:02:49]} 14. h3 {[%clk 0:02:17]}  O-O {[%clk 0:02:49]} 15. O-O {[%clk 0:02:09]}  Nd5 {[%clk 0:02:49]} 16. Bg5 {[%clk 0:02:07]}  h6 {[%clk 0:02:42]} 17. Bh4 {[%clk 0:02:03]}  Nf4 {[%clk 0:02:35]} 18. Qe3 {[%clk 0:01:54]}  Ng6 {[%clk 0:02:28]} 19. Bg3 {[%clk 0:01:48]}  Bxg3 {[%clk 0:02:28]} 20. fxg3 {[%clk 0:01:48]}  Nb6 {[%clk 0:02:23]} 21. Rae1 {[%clk 0:01:44]}  Nd5 {[%clk 0:02:23]} 22. Qf2 {[%clk 0:01:44]}  b5 {[%clk 0:02:20]} 23. N2f3 {[%clk 0:01:38]}  Rfe8 {[%clk 0:02:05]} 24. Kh2 {[%clk 0:01:37]}  e5 {[%clk 0:02:03]} 25. Nf5 {[%clk 0:01:37]}  e4 {[%clk 0:02:03]} 26. N3d4 {[%clk 0:01:36]}  Rcd8 {[%clk 0:01:53]} 27. Re2 {[%clk 0:01:31]}  Re5 {[%clk 0:01:32]} 28. Rfe1 {[%clk 0:01:11]}  Rde8 {[%clk 0:01:32]} 29. Rf1 {[%clk 0:01:11]}  Nf8 {[%clk 0:01:19]} 30. Nb3 {[%clk 0:01:00]}  Ne6 {[%clk 0:01:01]} 31. Nbd4 {[%clk 0:00:59]}  Nc5 {[%clk 0:00:57]} 32. Ne3 {[%clk 0:00:55]}  Nd3 {[%clk 0:00:53]} 33. Qg1 {[%clk 0:00:55]}  g6 {[%clk 0:00:38]} 34. Nxd5 {[%clk 0:00:55]}  Rxd5 {[%clk 0:00:39]} 35. Qe3 {[%clk 0:00:52]}  Kg7 {[%clk 0:00:36]} 36. Rd2 {[%clk 0:00:45]}  Re7 {[%clk 0:00:23]} 37. Rfd1 {[%clk 0:00:35]}  h5 {[%clk 0:00:22]} 38. Re2 {[%clk 0:00:29]}  h4 {[%clk 0:00:18]} 39. Rxd3 {[%clk 0:00:14]}  exd3 {[%clk 0:00:17]} 40. Qxe7 {[%clk 0:00:14]}  Qxe7 {[%clk 0:00:17]} 41. Rxe7 {[%clk 0:00:13]}  d2 {[%clk 0:00:17]} 42. Ne6+ {[%clk 0:00:10]}  Kf6 {[%clk 0:00:17]} 43. Nf4 {[%clk 0:00:08]}  d1=Q {[%clk 0:00:14]} 44. Nxd5+ {[%clk 0:00:09]}  Qxd5 {[%clk 0:00:15]} 45. Re3 {[%clk 0:00:09]}  hxg3+ {[%clk 0:00:15]} 46. Rxg3 {[%clk 0:00:09]}  Qxa2 {[%clk 0:00:16]} 47. Rf3+ {[%clk 0:00:10]}  Kg7 {[%clk 0:00:16]} 48. b4 {[%clk 0:00:10]}  Qd2 {[%clk 0:00:15]} 49. Kg3 {[%clk 0:00:11]}  Qd6+ {[%clk 0:00:15]} 50. Kf2 {[%clk 0:00:11]}  f5 {[%clk 0:00:16]} 51. Kg1 {[%clk 0:00:11]}  Qd1+ {[%clk 0:00:15]} 52. Kh2 {[%clk 0:00:11]}  Qd2 {[%clk 0:00:16]} 53. Kh1 {[%clk 0:00:11]}  Kf6 {[%clk 0:00:16]} 54. Kh2 {[%clk 0:00:12]}  g5 {[%clk 0:00:17]} 55. Kh1 {[%clk 0:00:13]}  f4 {[%clk 0:00:17]} 56. Kh2 {[%clk 0:00:13]}  Kf5 {[%clk 0:00:18]} 57. Kh1 {[%clk 0:00:13]}  Ke4 {[%clk 0:00:18]} 58. Kh2 {[%clk 0:00:14]}  Qe2 {[%clk 0:00:18]} 59. Kh1 {[%clk 0:00:12]}  Qxf3 {[%clk 0:00:18]} 0-1


[Site "https://www.chess.com"]

[Event "Titled Tuesday Blitz April 12 Early 2022"]
[White "Rudykh, Stepan"]
[Black "Zavgorodniy, Sergiy"]
[WhiteFideId "4180321"]
[BlackFideId "14110148"]
[WhiteElo "2176"]
[BlackElo "2420"]
[Result "0-1"]
[Round "06"]
[TimeControl "180+1"]
[Date "2022.04.13"]
[WhiteClock "0:02:22"]
[BlackClock "0:02:44"]

1. e4 {[%clk 0:03:00]}  e5 {[%clk 0:02:56]} 2. Nf3 {[%clk 0:03:01]}  d6 {[%clk 0:02:56]} 3. d4 {[%clk 0:03:00]}  exd4 {[%clk 0:02:55]} 4. Nxd4 {[%clk 0:03:00]}  Nf6 {[%clk 0:02:55]} 5. Nc3 {[%clk 0:02:59]}  Be7 {[%clk 0:02:56]} 6. Bc4 {[%clk 0:02:57]}  O-O {[%clk 0:02:56]} 7. O-O {[%clk 0:02:53]}  c6 {[%clk 0:02:57]} 8. Qe2 {[%clk 0:02:42]}  b5 {[%clk 0:02:54]} 9. Bb3 {[%clk 0:02:42]}  a6 {[%clk 0:02:51]} 10. h3 {[%clk 0:02:36]}  c5 {[%clk 0:02:50]} 11. Bd5 {[%clk 0:02:23]}  Nxd5 {[%clk 0:02:45]} 12. Nxd5 {[%clk 0:02:22]}  cxd4 {[%clk 0:02:44]} 0-1


[Site "https://www.chess.com"]

[Event "Titled Tuesday Blitz April 12 Early 2022"]
[White "Shohat, Yotam"]
[Black "Ovezdurdyyeva, Jemal"]
[WhiteFideId "2813955"]
[BlackFideId "14001888"]
[WhiteElo "2119"]
[BlackElo "1946"]
[Result "1-0"]
[Round "06"]
[TimeControl "180+1"]
[Date "2022.04.13"]
[WhiteClock "0:00:05"]
[BlackClock "0:00:08"]

1. e4 {[%clk 0:03:00]}  d6 {[%clk 0:02:59]} 2. d4 {[%clk 0:03:00]}  Nf6 {[%clk 0:02:59]} 3. Nc3 {[%clk 0:03:01]}  c6 {[%clk 0:03:00]} 4. Nf3 {[%clk 0:03:01]}  g6 {[%clk 0:02:59]} 5. h4 {[%clk 0:03:00]}  b5 {[%clk 0:02:57]} 6. a3 {[%clk 0:02:59]}  a5 {[%clk 0:02:31]} 7. e5 {[%clk 0:02:50]}  dxe5 {[%clk 0:02:09]} 8. Nxe5 {[%clk 0:02:49]}  Bg7 {[%clk 0:02:06]} 9. h5 {[%clk 0:02:47]}  Nxh5 {[%clk 0:02:04]} 10. Rxh5 {[%clk 0:02:44]}  gxh5 {[%clk 0:02:05]} 11. Qxh5 {[%clk 0:02:44]}  Be6 {[%clk 0:02:02]} 12. Be3 {[%clk 0:02:32]}  Qc7 {[%clk 0:01:56]} 13. Ne4 {[%clk 0:02:03]}  Bd5 {[%clk 0:01:42]} 14. Nc5 {[%clk 0:01:27]}  Na6 {[%clk 0:01:27]} 15. Nxa6 {[%clk 0:01:26]}  Rxa6 {[%clk 0:01:28]} 16. a4 {[%clk 0:01:25]}  Qb7 {[%clk 0:01:04]} 17. axb5 {[%clk 0:01:07]}  cxb5 {[%clk 0:00:44]} 18. Qg4 {[%clk 0:01:05]}  Bxe5 {[%clk 0:00:38]} 19. Bxb5+ {[%clk 0:01:04]}  Kf8 {[%clk 0:00:21]} 20. Bxa6 {[%clk 0:00:55]}  Qxa6 {[%clk 0:00:13]} 21. dxe5 {[%clk 0:00:52]}  Rg8 {[%clk 0:00:11]} 22. Qh4 {[%clk 0:00:22]}  Rxg2 {[%clk 0:00:08]} 23. O-O-O {[%clk 0:00:22]}  Qe6 {[%clk 0:00:02]} 24. Qxh7 {[%clk 0:00:14]}  Qxe5 {[%clk 0:00:02]} 25. Qh6+ {[%clk 0:00:07]}  Ke8 {[%clk 0:00:02]} 26. Qb6 {[%clk 0:00:05]}  f6 {[%clk 0:00:02]} 27. Qb5+ {[%clk 0:00:05]}  Kf7 {[%clk 0:00:01]} 28. Qxd5+ {[%clk 0:00:05]}  Qxd5 {[%clk 0:00:02]} 29. Rxd5 {[%clk 0:00:06]}  Rg1+ {[%clk 0:00:03]} 30. Kd2 {[%clk 0:00:06]}  Ra1 {[%clk 0:00:03]} 31. c4 {[%clk 0:00:06]}  Ra2 {[%clk 0:00:04]} 32. Kc3 {[%clk 0:00:06]}  a4 {[%clk 0:00:05]} 33. c5 {[%clk 0:00:05]}  e6 {[%clk 0:00:05]} 34. Rd7+ {[%clk 0:00:05]}  Ke8 {[%clk 0:00:05]} 35. Ra7 {[%clk 0:00:06]}  Ra1 {[%clk 0:00:04]} 36. Kb4 {[%clk 0:00:05]}  Kd8 {[%clk 0:00:05]} 37. Rxa4 {[%clk 0:00:04]}  Rb1 {[%clk 0:00:05]} 38. Bd4 {[%clk 0:00:05]}  Kc7 {[%clk 0:00:06]} 39. Bxf6 {[%clk 0:00:05]}  e5 {[%clk 0:00:07]} 40. Bxe5+ {[%clk 0:00:05]}  Kc6 {[%clk 0:00:08]} 41. Bc3 {[%clk 0:00:05]}  Rxb2+ {[%clk 0:00:08]} 42. Bxb2 {[%clk 0:00:05]} 1-0


[Site "https://www.chess.com"]

[Event "Titled Tuesday Blitz April 12 Early 2022"]
[White "Shtyka, Sergey"]
[Black "Kucuksari, Kaan"]
[WhiteFideId "4138465"]
[BlackFideId "6380166"]
[WhiteElo "2014"]
[BlackElo "2305"]
[Result "0-1"]
[Round "06"]
[TimeControl "180+1"]
[Date "2022.04.13"]
[WhiteClock "0:00:08"]
[BlackClock "0:01:09"]

1. e4 {[%clk 0:02:57]}  c5 {[%clk 0:02:59]} 2. Nf3 {[%clk 0:02:58]}  Nc6 {[%clk 0:02:59]} 3. d4 {[%clk 0:02:58]}  cxd4 {[%clk 0:02:59]} 4. Nxd4 {[%clk 0:02:59]}  Nf6 {[%clk 0:02:57]} 5. Nc3 {[%clk 0:02:59]}  e5 {[%clk 0:02:58]} 6. Ndb5 {[%clk 0:02:58]}  d6 {[%clk 0:02:58]} 7. Bg5 {[%clk 0:02:57]}  a6 {[%clk 0:02:58]} 8. Na3 {[%clk 0:02:57]}  b5 {[%clk 0:02:59]} 9. Bxf6 {[%clk 0:02:57]}  Qxf6 {[%clk 0:02:56]} 10. Nd5 {[%clk 0:02:55]}  Qd8 {[%clk 0:02:56]} 11. Bxb5 {[%clk 0:02:52]}  axb5 {[%clk 0:02:55]} 12. Nxb5 {[%clk 0:02:53]}  Ra7 {[%clk 0:01:54]} 13. Nxa7 {[%clk 0:02:53]}  Nxa7 {[%clk 0:01:55]} 14. O-O {[%clk 0:02:53]}  Be7 {[%clk 0:01:52]} 15. b4 {[%clk 0:02:52]}  O-O {[%clk 0:01:50]} 16. a4 {[%clk 0:02:52]}  Nc6 {[%clk 0:01:46]} 17. c3 {[%clk 0:02:32]}  Be6 {[%clk 0:01:44]} 18. a5 {[%clk 0:02:28]}  f5 {[%clk 0:01:44]} 19. Nxe7+ {[%clk 0:02:24]}  Nxe7 {[%clk 0:01:45]} 20. exf5 {[%clk 0:02:24]}  Nxf5 {[%clk 0:01:45]} 21. Qd2 {[%clk 0:01:59]}  Nh4 {[%clk 0:01:40]} 22. Rad1 {[%clk 0:01:50]}  Bh3 {[%clk 0:01:34]} 23. Qd5+ {[%clk 0:01:05]}  Kh8 {[%clk 0:01:34]} 24. gxh3 {[%clk 0:01:05]}  Nf3+ {[%clk 0:01:34]} 25. Kh1 {[%clk 0:00:56]}  Qc8 {[%clk 0:01:34]} 26. Qxd6 {[%clk 0:00:48]}  Rg8 {[%clk 0:01:35]} 27. Rg1 {[%clk 0:00:21]}  Nxg1 {[%clk 0:01:12]} 28. Rxg1 {[%clk 0:00:17]}  Qa8+ {[%clk 0:01:11]} 29. Rg2 {[%clk 0:00:16]}  Rd8 {[%clk 0:01:09]} 30. Qxd8+ {[%clk 0:00:13]}  Qxd8 {[%clk 0:01:10]} 31. f3 {[%clk 0:00:09]}  Qd1+ {[%clk 0:01:09]} 32. Rg1 {[%clk 0:00:09]}  Qxf3+ {[%clk 0:01:10]} 33. Rg2 {[%clk 0:00:10]}  e4 {[%clk 0:01:09]} 34. a6 {[%clk 0:00:09]}  e3 {[%clk 0:01:09]} 35. a7 {[%clk 0:00:08]}  e2 {[%clk 0:01:09]} 0-1


[Site "https://www.chess.com"]

[Event "Titled Tuesday Blitz April 12 Early 2022"]
[White "Sjugirov, Sanan"]
[Black "Sarana, Alexey"]
[WhiteFideId "4189302"]
[BlackFideId "24133795"]
[WhiteElo "2602"]
[BlackElo "2666"]
[Result "0-1"]
[Round "06"]
[TimeControl "180+1"]
[Date "2022.04.12"]
[WhiteClock "0:00:02"]
[BlackClock "0:01:27"]

1. d4 {[%clk 0:03:00]}  Nf6 {[%clk 0:02:59]} 2. c4 {[%clk 0:02:59]}  e6 {[%clk 0:02:59]} 3. Nf3 {[%clk 0:02:57]}  d5 {[%clk 0:03:00]} 4. g3 {[%clk 0:02:57]}  Bb4+ {[%clk 0:03:00]} 5. Bd2 {[%clk 0:02:56]}  Be7 {[%clk 0:03:00]} 6. Bg2 {[%clk 0:02:56]}  c6 {[%clk 0:03:01]} 7. O-O {[%clk 0:02:55]}  Nbd7 {[%clk 0:03:01]} 8. Bf4 {[%clk 0:02:48]}  O-O {[%clk 0:02:59]} 9. Nc3 {[%clk 0:02:45]}  dxc4 {[%clk 0:02:58]} 10. a4 {[%clk 0:02:44]}  Nd5 {[%clk 0:02:57]} 11. Nd2 {[%clk 0:02:22]}  Nxf4 {[%clk 0:02:56]} 12. gxf4 {[%clk 0:02:23]}  c5 {[%clk 0:02:54]} 13. dxc5 {[%clk 0:02:14]}  Nxc5 {[%clk 0:02:53]} 14. Nxc4 {[%clk 0:02:12]}  Qc7 {[%clk 0:02:46]} 15. e3 {[%clk 0:02:07]}  Rd8 {[%clk 0:02:46]} 16. Qe2 {[%clk 0:02:06]}  Bd7 {[%clk 0:02:42]} 17. Nb5 {[%clk 0:01:54]}  Qb8 {[%clk 0:02:19]} 18. Ne5 {[%clk 0:01:29]}  Be8 {[%clk 0:02:15]} 19. Qc2 {[%clk 0:00:47]}  Nxa4 {[%clk 0:02:06]} 20. Qc7 {[%clk 0:00:15]}  Bd6 {[%clk 0:02:01]} 21. Qxb8 {[%clk 0:00:14]}  Raxb8 {[%clk 0:01:58]} 22. Nxd6 {[%clk 0:00:14]}  Rxd6 {[%clk 0:01:59]} 23. b3 {[%clk 0:00:14]}  Nc5 {[%clk 0:01:55]} 24. Rxa7 {[%clk 0:00:15]}  Rb6 {[%clk 0:01:55]} 25. Rc1 {[%clk 0:00:11]}  Nxb3 {[%clk 0:01:46]} 26. Rc7 {[%clk 0:00:11]}  Nd2 {[%clk 0:01:38]} 27. Rcxb7 {[%clk 0:00:10]}  Rb1+ {[%clk 0:01:37]} 28. Rxb1 {[%clk 0:00:07]}  Rxb1+ {[%clk 0:01:38]} 29. Bf1 {[%clk 0:00:08]}  Rxf1+ {[%clk 0:01:34]} 30. Kg2 {[%clk 0:00:07]}  Rc1 {[%clk 0:01:27]} 31. Ra2 {[%clk 0:00:01]}  Nc4 {[%clk 0:01:25]} 32. Ra8 {[%clk 0:00:01]}  Kf8 {[%clk 0:01:26]} 33. Rc8 {[%clk 0:00:02]}  Nxe3+ {[%clk 0:01:27]} 0-1


[Site "https://www.chess.com"]

[Event "Titled Tuesday Blitz April 12 Early 2022"]
[White "Stribuk, Artiom"]
[Black "Wagh Suyog"]
[WhiteFideId "13515659"]
[BlackFideId "25071688"]
[WhiteElo "2259"]
[BlackElo "2181"]
[Result "1/2-1/2"]
[Round "06"]
[TimeControl "180+1"]
[Date "2022.04.12"]
[WhiteClock "0:00:11"]
[BlackClock "0:00:18"]

1. d4 {[%clk 0:03:00]}  Nf6 {[%clk 0:02:52]} 2. c4 {[%clk 0:03:00]}  g6 {[%clk 0:02:53]} 3. Nf3 {[%clk 0:02:57]}  Bg7 {[%clk 0:02:53]} 4. g3 {[%clk 0:02:58]}  O-O {[%clk 0:02:54]} 5. Bg2 {[%clk 0:02:58]}  d6 {[%clk 0:02:52]} 6. Nc3 {[%clk 0:02:58]}  Nc6 {[%clk 0:02:52]} 7. O-O {[%clk 0:02:53]}  a6 {[%clk 0:02:52]} 8. b3 {[%clk 0:02:48]}  Rb8 {[%clk 0:02:45]} 9. d5 {[%clk 0:02:37]}  Na7 {[%clk 0:02:43]} 10. Nd4 {[%clk 0:02:18]}  Bd7 {[%clk 0:02:37]} 11. Bb2 {[%clk 0:01:44]}  c5 {[%clk 0:02:37]} 12. dxc6 {[%clk 0:01:45]}  Nxc6 {[%clk 0:02:37]} 13. Rc1 {[%clk 0:01:42]}  Nxd4 {[%clk 0:02:35]} 14. Qxd4 {[%clk 0:01:42]}  Bc6 {[%clk 0:02:35]} 15. Nd5 {[%clk 0:01:36]}  Rc8 {[%clk 0:02:31]} 16. Qd2 {[%clk 0:01:18]}  Bxd5 {[%clk 0:02:16]} 17. Bxd5 {[%clk 0:01:16]}  Nxd5 {[%clk 0:02:15]} 18. Bxg7 {[%clk 0:01:17]}  Kxg7 {[%clk 0:02:16]} 19. Qxd5 {[%clk 0:01:16]}  Qb6 {[%clk 0:02:15]} 20. Rfd1 {[%clk 0:01:14]}  h5 {[%clk 0:02:10]} 21. h4 {[%clk 0:01:13]}  Rc5 {[%clk 0:02:06]} 22. Qd4+ {[%clk 0:01:12]}  Kg8 {[%clk 0:02:06]} 23. Rc3 {[%clk 0:01:00]}  Rfc8 {[%clk 0:02:05]} 24. Re3 {[%clk 0:00:58]}  Qc7 {[%clk 0:02:02]} 25. a4 {[%clk 0:00:46]}  b5 {[%clk 0:02:01]} 26. cxb5 {[%clk 0:00:43]}  axb5 {[%clk 0:02:02]} 27. axb5 {[%clk 0:00:40]}  Rxb5 {[%clk 0:02:01]} 28. Ra1 {[%clk 0:00:40]}  Rb7 {[%clk 0:01:54]} 29. Rf3 {[%clk 0:00:34]}  Rcb8 {[%clk 0:01:48]} 30. Rc3 {[%clk 0:00:28]}  Qd7 {[%clk 0:01:46]} 31. Ra3 {[%clk 0:00:25]}  Qe6 {[%clk 0:01:44]} 32. Re3 {[%clk 0:00:25]}  Qd7 {[%clk 0:01:44]} 33. Rc3 {[%clk 0:00:25]}  Qb5 {[%clk 0:01:39]} 34. Qe3 {[%clk 0:00:22]}  Qf5 {[%clk 0:01:36]} 35. Ra7 {[%clk 0:00:18]}  Qd7 {[%clk 0:01:28]} 36. Rxb7 {[%clk 0:00:18]}  Qxb7 {[%clk 0:01:29]} 37. Qd4 {[%clk 0:00:16]}  Qb5 {[%clk 0:01:24]} 38. Qe3 {[%clk 0:00:15]}  e6 {[%clk 0:01:22]} 39. Qd4 {[%clk 0:00:14]}  Qd7 {[%clk 0:01:19]} 40. e4 {[%clk 0:00:13]}  Kh7 {[%clk 0:01:17]} 41. Rd3 {[%clk 0:00:13]}  Rd8 {[%clk 0:01:16]} 42. Qb4 {[%clk 0:00:13]}  Qc6 {[%clk 0:01:15]} 43. Qc4 {[%clk 0:00:11]}  Qb6 {[%clk 0:01:11]} 44. Kg2 {[%clk 0:00:11]}  Rd7 {[%clk 0:01:11]} 45. Qd4 {[%clk 0:00:10]}  Qb7 {[%clk 0:01:09]} 46. Kh2 {[%clk 0:00:10]}  Qc6 {[%clk 0:01:07]} 47. Rf3 {[%clk 0:00:10]}  e5 {[%clk 0:01:01]} 48. Qd3 {[%clk 0:00:09]}  Kg7 {[%clk 0:01:01]} 49. Re3 {[%clk 0:00:08]}  Rb7 {[%clk 0:01:00]} 50. Qd2 {[%clk 0:00:08]}  Rb6 {[%clk 0:00:56]} 51. Qe2 {[%clk 0:00:06]}  Qb7 {[%clk 0:00:55]} 52. Rd3 {[%clk 0:00:06]}  Rxb3 {[%clk 0:00:54]} 53. Rxd6 {[%clk 0:00:06]}  Rb4 {[%clk 0:00:53]} 54. Qf3 {[%clk 0:00:05]}  Qe7 {[%clk 0:00:49]} 55. Rd5 {[%clk 0:00:06]}  Rb6 {[%clk 0:00:46]} 56. Qe3 {[%clk 0:00:06]}  Rc6 {[%clk 0:00:41]} 57. Qg5 {[%clk 0:00:05]}  Re6 {[%clk 0:00:29]} 58. Qxe7 {[%clk 0:00:05]}  Rxe7 {[%clk 0:00:30]} 59. Kg2 {[%clk 0:00:06]}  Kf6 {[%clk 0:00:30]} 60. Rd6+ {[%clk 0:00:06]}  Re6 {[%clk 0:00:30]} 61. Rd5 {[%clk 0:00:06]}  Ra6 {[%clk 0:00:30]} 62. Rd3 {[%clk 0:00:05]}  Ke6 {[%clk 0:00:30]} 63. Kf3 {[%clk 0:00:05]}  f5 {[%clk 0:00:29]} 64. exf5+ {[%clk 0:00:05]}  gxf5 {[%clk 0:00:29]} 65. Rb3 {[%clk 0:00:06]}  Kf6 {[%clk 0:00:28]} 66. Rc3 {[%clk 0:00:06]}  Rb6 {[%clk 0:00:28]} 67. Ke3 {[%clk 0:00:06]}  Rd6 {[%clk 0:00:26]} 68. Rb3 {[%clk 0:00:06]}  Re6 {[%clk 0:00:26]} 69. Rd3 {[%clk 0:00:06]}  Ra6 {[%clk 0:00:26]} 70. Rb3 {[%clk 0:00:06]}  Ra4 {[%clk 0:00:22]} 71. Rb6+ {[%clk 0:00:07]}  Kg7 {[%clk 0:00:22]} 72. Re6 {[%clk 0:00:06]}  Ra5 {[%clk 0:00:19]} 73. Rb6 {[%clk 0:00:06]}  Rc5 {[%clk 0:00:18]} 74. Re6 {[%clk 0:00:06]}  Rc3+ {[%clk 0:00:18]} 75. Ke2 {[%clk 0:00:06]}  Rc5 {[%clk 0:00:17]} 76. Kf3 {[%clk 0:00:06]}  Ra5 {[%clk 0:00:17]} 77. Kg2 {[%clk 0:00:07]}  Rb5 {[%clk 0:00:17]} 78. Rd6 {[%clk 0:00:07]}  Ra5 {[%clk 0:00:16]} 79. Kf3 {[%clk 0:00:07]}  Rb5 {[%clk 0:00:17]} 80. Rc6 {[%clk 0:00:08]}  Ra5 {[%clk 0:00:17]} 81. Ke3 {[%clk 0:00:08]}  Ra3+ {[%clk 0:00:17]} 82. Ke2 {[%clk 0:00:08]}  Ra2+ {[%clk 0:00:18]} 83. Kf3 {[%clk 0:00:08]}  Ra3+ {[%clk 0:00:18]} 84. Kg2 {[%clk 0:00:09]}  Ra5 {[%clk 0:00:18]} 85. Re6 {[%clk 0:00:09]}  Rb5 {[%clk 0:00:19]} 86. Kf1 {[%clk 0:00:10]}  Rb1+ {[%clk 0:00:19]} 87. Ke2 {[%clk 0:00:10]}  Rb2+ {[%clk 0:00:19]} 88. Ke3 {[%clk 0:00:11]}  Rb3+ {[%clk 0:00:19]} 89. Ke2 {[%clk 0:00:10]}  Rb2+ {[%clk 0:00:20]} 90. Kf3 {[%clk 0:00:11]}  Rb3+ {[%clk 0:00:20]} 91. Kg2 {[%clk 0:00:11]}  Rb5 {[%clk 0:00:18]} 1/2-1/2


[Site "https://www.chess.com"]

[Event "Titled Tuesday Blitz April 12 Early 2022"]
[White "Svane, Frederik"]
[Black "Gabdrakhmanov, Azat"]
[WhiteFideId "12923044"]
[BlackFideId "34189197"]
[WhiteElo "2459"]
[BlackElo "2279"]
[Result "1-0"]
[Round "06"]
[TimeControl "180+1"]
[Date "2022.04.12"]
[WhiteClock "0:00:07"]
[BlackClock "0:00:09"]

1. e4 {[%clk 0:03:00]}  c5 {[%clk 0:03:00]} 2. Nf3 {[%clk 0:03:01]}  e6 {[%clk 0:03:00]} 3. c3 {[%clk 0:03:00]}  d5 {[%clk 0:03:00]} 4. e5 {[%clk 0:03:00]}  d4 {[%clk 0:03:00]} 5. Na3 {[%clk 0:02:56]}  Nc6 {[%clk 0:02:57]} 6. Bd3 {[%clk 0:02:52]}  Nge7 {[%clk 0:02:56]} 7. Nc4 {[%clk 0:02:39]}  Ng6 {[%clk 0:02:56]} 8. h4 {[%clk 0:02:37]}  Qc7 {[%clk 0:02:45]} 9. cxd4 {[%clk 0:01:56]}  cxd4 {[%clk 0:02:46]} 10. Be4 {[%clk 0:01:41]}  Ncxe5 {[%clk 0:02:38]} 11. Ncxe5 {[%clk 0:01:41]}  Nxe5 {[%clk 0:02:38]} 12. Nxd4 {[%clk 0:01:34]}  Bc5 {[%clk 0:02:19]} 13. Nb3 {[%clk 0:01:29]}  Bb6 {[%clk 0:01:59]} 14. d4 {[%clk 0:01:28]}  f5 {[%clk 0:01:25]} 15. Bf4 {[%clk 0:00:56]}  Nd3+ {[%clk 0:01:10]} 16. Bxd3 {[%clk 0:00:57]}  Qxf4 {[%clk 0:01:10]} 17. Bb5+ {[%clk 0:00:55]}  Kf7 {[%clk 0:00:54]} 18. Qh5+ {[%clk 0:00:52]}  g6 {[%clk 0:00:53]} 19. Qe2 {[%clk 0:00:52]}  Rd8 {[%clk 0:00:45]} 20. Rd1 {[%clk 0:00:50]}  e5 {[%clk 0:00:22]} 21. Bc4+ {[%clk 0:00:37]}  Be6 {[%clk 0:00:12]} 22. h5 {[%clk 0:00:29]}  g5 {[%clk 0:00:06]} 23. Bxe6+ {[%clk 0:00:25]}  Kxe6 {[%clk 0:00:07]} 24. Qc4+ {[%clk 0:00:23]}  Kf6 {[%clk 0:00:06]} 25. O-O {[%clk 0:00:18]}  Rac8 {[%clk 0:00:06]} 26. dxe5+ {[%clk 0:00:17]}  Qxe5 {[%clk 0:00:06]} 27. Qb4 {[%clk 0:00:11]}  Qf4 {[%clk 0:00:04]} 28. Qxf4 {[%clk 0:00:05]}  gxf4 {[%clk 0:00:05]} 29. Nd2 {[%clk 0:00:03]}  Rc2 {[%clk 0:00:03]} 30. Nf3 {[%clk 0:00:04]}  Rxd1 {[%clk 0:00:03]} 31. Rxd1 {[%clk 0:00:04]}  Rxb2 {[%clk 0:00:03]} 32. Kh2 {[%clk 0:00:05]}  Rxa2 {[%clk 0:00:02]} 33. Rd6+ {[%clk 0:00:06]}  Ke7 {[%clk 0:00:02]} 34. Rh6 {[%clk 0:00:06]}  Rxf2 {[%clk 0:00:02]} 35. Rxh7+ {[%clk 0:00:07]}  Kd6 {[%clk 0:00:03]} 36. h6 {[%clk 0:00:07]}  Rf1 {[%clk 0:00:04]} 37. Rg7 {[%clk 0:00:05]}  Bf2 {[%clk 0:00:04]} 38. h7 {[%clk 0:00:03]}  Bg3+ {[%clk 0:00:05]} 39. Rxg3 {[%clk 0:00:03]}  fxg3+ {[%clk 0:00:06]} 40. Kxg3 {[%clk 0:00:04]}  Rh1 {[%clk 0:00:06]} 41. Nh4 {[%clk 0:00:05]}  f4+ {[%clk 0:00:07]} 42. Kg4 {[%clk 0:00:05]}  f3 {[%clk 0:00:08]} 43. gxf3 {[%clk 0:00:05]}  Rg1+ {[%clk 0:00:09]} 44. Kh5 {[%clk 0:00:05]}  a5 {[%clk 0:00:08]} 45. h8=Q {[%clk 0:00:06]}  Re1 {[%clk 0:00:08]} 46. Qd4+ {[%clk 0:00:06]}  Kc6 {[%clk 0:00:09]} 47. Qc3+ {[%clk 0:00:06]}  Kb5 {[%clk 0:00:09]} 48. Qxe1 {[%clk 0:00:07]} 1-0


[Site "https://www.chess.com"]

[Event "Titled Tuesday Blitz April 12 Early 2022"]
[White "Svane, Rasmus"]
[Black "Bekturov, Tamerlan"]
[WhiteFideId "4657101"]
[BlackFideId "13710184"]
[WhiteElo "2645"]
[BlackElo "2151"]
[Result "1-0"]
[Round "06"]
[TimeControl "180+1"]
[Date "2022.04.12"]
[WhiteClock "0:00:32"]
[BlackClock "0:00:07"]

1. Nf3 {[%clk 0:03:00]}  d5 {[%clk 0:02:58]} 2. g3 {[%clk 0:03:00]}  Nf6 {[%clk 0:02:58]} 3. Bg2 {[%clk 0:03:00]}  Nbd7 {[%clk 0:02:59]} 4. d4 {[%clk 0:03:00]}  Nb6 {[%clk 0:02:56]} 5. Nc3 {[%clk 0:02:58]}  Bf5 {[%clk 0:02:52]} 6. Nh4 {[%clk 0:02:58]}  Be6 {[%clk 0:02:46]} 7. O-O {[%clk 0:02:56]}  g6 {[%clk 0:02:47]} 8. Nf3 {[%clk 0:02:36]}  Bg7 {[%clk 0:02:46]} 9. Ng5 {[%clk 0:02:36]}  Bf5 {[%clk 0:02:45]} 10. a4 {[%clk 0:02:25]}  h6 {[%clk 0:02:43]} 11. Nf3 {[%clk 0:02:24]}  a5 {[%clk 0:02:42]} 12. Nh4 {[%clk 0:02:20]}  Be6 {[%clk 0:02:42]} 13. Re1 {[%clk 0:02:19]}  O-O {[%clk 0:02:38]} 14. Qd3 {[%clk 0:02:15]}  Qd7 {[%clk 0:02:37]} 15. e4 {[%clk 0:02:11]}  dxe4 {[%clk 0:02:35]} 16. Nxe4 {[%clk 0:02:11]}  Nxe4 {[%clk 0:02:35]} 17. Bxe4 {[%clk 0:02:12]}  c6 {[%clk 0:02:09]} 18. c3 {[%clk 0:02:08]}  Bc4 {[%clk 0:02:02]} 19. Qc2 {[%clk 0:01:58]}  Bd5 {[%clk 0:01:51]} 20. Nf3 {[%clk 0:01:53]}  Bxe4 {[%clk 0:01:41]} 21. Qxe4 {[%clk 0:01:54]}  Qd5 {[%clk 0:01:36]} 22. Qe2 {[%clk 0:01:46]}  Rfe8 {[%clk 0:01:27]} 23. h4 {[%clk 0:01:46]}  Qc4 {[%clk 0:01:21]} 24. Bf4 {[%clk 0:01:37]}  Qxe2 {[%clk 0:01:17]} 25. Rxe2 {[%clk 0:01:38]}  Nd5 {[%clk 0:01:18]} 26. Bd2 {[%clk 0:01:33]}  b5 {[%clk 0:01:12]} 27. Ne5 {[%clk 0:01:23]}  Ra6 {[%clk 0:01:00]} 28. Nd3 {[%clk 0:01:21]}  Nb6 {[%clk 0:00:57]} 29. Nc5 {[%clk 0:01:17]}  Raa8 {[%clk 0:00:57]} 30. Bf4 {[%clk 0:01:09]}  e6 {[%clk 0:00:50]} 31. axb5 {[%clk 0:00:57]}  cxb5 {[%clk 0:00:48]} 32. Bc7 {[%clk 0:00:58]}  Nd5 {[%clk 0:00:34]} 33. Bxa5 {[%clk 0:00:58]}  b4 {[%clk 0:00:33]} 34. Ree1 {[%clk 0:00:47]}  bxc3 {[%clk 0:00:23]} 35. Bxc3 {[%clk 0:00:48]}  Rac8 {[%clk 0:00:20]} 36. Ra7 {[%clk 0:00:42]}  Red8 {[%clk 0:00:17]} 37. Rea1 {[%clk 0:00:37]}  Nf6 {[%clk 0:00:13]} 38. Rb7 {[%clk 0:00:35]}  h5 {[%clk 0:00:08]} 39. Raa7 {[%clk 0:00:34]}  Rf8 {[%clk 0:00:08]} 40. Nd7 {[%clk 0:00:32]}  Nxd7 {[%clk 0:00:07]} 41. Rxd7 {[%clk 0:00:32]} 1-0


[Site "https://www.chess.com"]